bitfinex-derivatives/quotes_SOLF0:USTF0_20251216
["timestamp","ask_amount","ask_price","bid_price","bid_amount"]
[1765857727890,0.05231015,126.67,126.66,3.09]
[1765857728979,0.05231015,126.67,126.64,3.14243049]
[1765857729580,0.05231015,126.67,126.65,3.09]
[1765857735989,2.83231015,126.67,126.64,0.05243049]
[1765857736288,2.78,126.66,126.59,5.72227071]
[1765857736691,9.8885,126.64,126.6,3.09]
[1765857736987,5.41227071,126.63,126.57,72.84227071]
[1765857737377,0.0497189,126.61,126.59,0.05064408]
[1765857738591,0.0497189,126.61,126.59,3.14064408]
[1765857739189,0.0497189,126.61,126.6,3.09]
[1765857741879,0.0497189,126.61,126.59,0.05064408]
[1765857742693,2.8297189,126.61,126.59,0.05064408]
[1765857742895,2.78,126.6,126.59,0.05064408]
[1765857743689,9.8908,126.6,126.54,3.09]
[1765857743988,2.78,126.59,126.54,3.09]
[1765857744384,2.78,126.57,126.52,67.14]
[1765857744581,2.78,126.56,126.49,3.09]
[1765857744791,0.05060436,126.54,126.51,0.05638715]
[1765857745095,2.83060436,126.54,126.51,0.05638715]
[1765857745801,2.78,126.53,126.51,0.05638715]
[1765857748196,9.94470436,126.54,126.51,0.05638715]
[1765857748699,2.78,126.53,126.51,0.05638715]
[1765857751889,7.16470436,126.54,126.51,0.05638715]
[1765857752195,7.16470436,126.54,126.51,3.21638715]
[1765857753901,0.05060436,126.54,126.51,3.21638715]
[1765857754902,2.78,126.52,126.51,0.05638715]
[1765857755101,2.78,126.49,126.42,3.16]
[1765857755895,2.78,126.49,126.43,3.16]
[1765857756096,0.0603761,126.47,126.45,0.05140206]
[1765857756595,0.0603761,126.47,126.45,3.21140206]
[1765857758190,0.0603761,126.47,126.45,0.05140206]
[1765857758387,2.8403761,126.47,126.45,0.05140206]
[1765857759893,0.0603761,126.47,126.45,3.21140206]
[1765857760997,0.0603761,126.47,126.45,10.33020206]
[1765857761201,113.4918,126.56,126.47,3.16]
[1765857761402,2.84,126.55,126.48,3.16]
[1765857762405,0.05754177,126.53,126.5,3.21284905]
[1765857762792,2.89754177,126.53,126.5,0.05284905]
[1765857763892,10.01214177,126.53,126.5,0.05284905]
[1765857767007,0.05754177,126.53,126.5,3.21284905]
[1765857767609,0.05754177,126.53,126.5,10.32884905]
[1765857767806,0.05754177,126.53,126.51,3.16]
[1765857768808,2.89754177,126.53,126.5,3.21284905]
[1765857771508,10.01214177,126.53,126.5,0.05284905]
[1765857771707,2.89754177,126.53,126.5,0.05284905]
[1765857772506,2.84,126.51,126.5,0.05284905]
[1765857772910,4.42,126.51,126.45,67.2]
[1765857773112,2.84,126.5,126.45,70.36]
[1765857773319,2.84,126.48,126.45,70.36]
[1765857773508,2.84,126.48,126.45,67.2]
[1765857773704,2.84,126.48,126.42,10.2802]
[1765857774014,2.89567736,126.48,126.45,0.0573484]
[1765857774415,9.958,126.47,126.45,0.0573484]
[1765857774710,2.84,126.46,126.42,3.16]
[1765857775808,0.05025712,126.45,126.43,0.05660578]
[1765857776213,0.05025712,126.45,126.43,3.21660578]
[1765857779817,0.05025712,126.45,126.44,3.16]
[1765857783121,0.05025712,126.45,126.43,0.05660578]
[1765857783321,0.05025712,126.45,126.43,3.34660578]
[1765857783719,2.89025712,126.45,126.43,0.05660578]
[1765857783928,2.84,126.43,126.37,3.29]
[1765857784312,9.9605,126.43,126.37,3.29]
[1765857784519,2.84,126.43,126.37,3.29]
[1765857785019,2.84,126.43,126.35,7.07551629]
[1765857785020,0.06074561,126.41,126.39,3.35069527]
[1765857785529,2.9,126.49,126.41,3.29]
[1765857785717,10.018,126.47,126.43,3.29]
[1765857786214,2.9,126.46,126.41,3.29]
[1765857786415,2.9,126.46,126.39,10.36551629]
[1765857786617,2.95889404,126.44,126.41,0.060283]
[1765857787914,10.07849404,126.44,126.41,0.060283]
[1765857789630,0.05889404,126.44,126.41,3.350283]
[1765857791227,2.95889404,126.44,126.41,3.350283]
[1765857792523,10.07869404,126.44,126.41,0.060283]
[1765857792932,2.9,126.43,126.41,0.060283]
[1765857793123,2.9,126.42,126.41,0.060283]
[1765857793527,10.0204,126.43,126.41,0.060283]
[1765857794032,2.9,126.43,126.41,0.060283]
[1765857794730,0.05889404,126.44,126.41,3.350283]
[1765857797428,2.95889404,126.44,126.41,3.350283]
[1765857800726,0.05889404,126.44,126.41,3.350283]
[1765857801534,0.05889404,126.44,126.42,3.29]
[1765857802040,2.9,126.49,126.43,3.29]
[1765857802930,10.0168,126.49,126.44,10.4094]
[1765857803129,10.0168,126.49,126.45,3.29]
[1765857803329,2.94976262,126.48,126.45,3.34920366]
[1765857804227,2.94976262,126.48,126.45,0.05920366]
[1765857805934,2.9,126.46,126.45,0.05920366]
[1765857807136,2.9,126.43,126.4,3.29]
[1765857808035,2.95427088,126.43,126.4,3.34577116]
[1765857808636,0.05427088,126.43,126.4,3.34577116]
[1765857809934,0.05427088,126.43,126.4,10.46737116]
[1765857810134,0.05427088,126.43,126.41,3.29]
[1765857810542,2.95427088,126.43,126.4,3.34577116]
[1765857812636,10.07447088,126.43,126.4,3.34577116]
[1765857815334,10.07447088,126.43,126.4,3.27577116]
[1765857816845,10.0208,126.42,126.4,0.05577116]
[1765857818345,7.1208,126.42,126.4,3.27577116]
[1765857819044,10.0208,126.42,126.4,3.27577116]
[1765857819246,10.0208,126.42,126.4,0.05577116]
[1765857820042,0.05427088,126.43,126.4,3.27577116]
[1765857820345,2.95427088,126.43,126.4,3.27577116]
[1765857821249,10.07447088,126.43,126.4,3.27577116]
[1765857821745,2.9,126.42,126.4,3.27577116]
[1765857825650,0.05427088,126.43,126.4,3.27577116]
[1765857826245,0.05427088,126.43,126.42,3.22]
[1765857826953,0.05427088,126.43,126.41,3.22]
[1765857827150,2.95427088,126.43,126.4,3.27577116]
[1765857828343,10.0208,126.42,126.4,0.05577116]
[1765857830954,2.9,126.41,126.4,0.05577116]
[1765857831455,10.0222,126.4,126.34,3.22]
[1765857831652,110.7713,126.42,126.34,3.22]
[1765857831653,2.9,126.39,126.34,3.22]
[1765857832245,10.0219,126.4,126.35,3.22]
[1765857832442,0.05126793,126.38,126.35,3.27563554]
[1765857835455,0.05126793,126.38,126.36,3.22]
[1765857840361,0.05126793,126.38,126.36,10.3439]
[1765857840760,0.05126793,126.38,126.37,3.22]
[1765857841265,2.95126793,126.38,126.35,3.27563554]
[1765857847161,10.07426793,126.38,126.35,0.05563554]
[1765857847365,2.91,126.37,126.35,0.05563554]
[1765857848053,10.0335,126.37,126.35,0.05563554]
[1765857848256,2.96126793,126.38,126.35,3.42563554]
[1765857848762,10.08416793,126.38,126.35,3.42563554]
[1765857851068,2.91,126.36,126.35,0.05563554]
[1765857858367,2.91,126.34,126.3,3.37]
[1765857859359,0.05109412,126.33,126.31,0.05018788]
[1765857859560,2.96109412,126.33,126.31,0.05018788]
[1765857859869,0.05109412,126.33,126.31,6.0660149]
[1765857860072,0.05109412,126.33,126.32,3.37]
[1765857863680,0.05109412,126.33,126.31,6.0660149]
[1765857863872,0.05109412,126.33,126.31,3.42018788]
[1765857864975,2.96109412,126.33,126.31,3.42018788]
[1765857865174,0.05109412,126.33,126.31,3.42018788]
[1765857868981,0.05109412,126.33,126.31,10.54698788]
[1765857869182,118.02997495,126.43,126.31,10.54698788]
[1765857869183,113.6971,126.4,126.33,3.37]
[1765857869473,2.96,126.39,126.35,3.37]
[1765857869677,2.96,126.36,126.34,3.37]
[1765857870272,0.05803696,126.36,126.34,3.42403791]
[1765857875086,10.14213696,126.36,126.34,0.05403791]
[1765857875286,2.96,126.35,126.34,0.05403791]
[1765857884794,2.96,126.33,126.3,3.1]
[1765857886095,10.14676066,126.33,126.3,3.15347841]
[1765857888494,0.06066066,126.33,126.3,3.15347841]
[1765857891102,10.14646066,126.33,126.3,3.15347841]
[1765857891900,2.96,126.32,126.3,0.05347841]
[1765857892202,10.0863,126.32,126.3,3.15347841]
[1765857892504,10.14646066,126.33,126.3,3.15347841]
[1765857894705,0.06066066,126.33,126.3,3.15347841]
[1765857896598,0.06066066,126.33,126.31,5.74582702]
[1765857896802,7.1239,126.37,126.32,3.1]
[1765857897096,10.1439,126.37,126.34,3.1]
[1765857897303,10.1441,126.36,126.34,3.1]
[1765857897799,10.1981594,126.36,126.34,3.16057947]
[1765857898907,7.1781594,126.36,126.34,3.16057947]
[1765857899906,0.0540594,126.36,126.34,3.16057947]
[1765857902096,0.0540594,126.36,126.35,5.89582702]
[1765857904704,10.1421,126.4,126.36,3.25]
[1765857905215,10.1411,126.42,126.38,3.25]
[1765857905403,5.66582702,126.46,126.4,3.25]
[1765857905604,3.02,126.45,126.42,3.25]
[1765857905810,3.07305311,126.44,126.42,3.30719226]
[1765857906503,3.07305311,126.44,126.42,0.05719226]
[1765857907822,10.19285311,126.44,126.42,0.05719226]
[1765857908015,3.02,126.43,126.42,0.05719226]
[1765857908511,10.19285311,126.44,126.42,0.05719226]
[1765857910418,3.02,126.43,126.42,0.05719226]
[1765857912418,10.19285311,126.44,126.42,3.30719226]
[1765857913617,10.19285311,126.44,126.42,0.05719226]
[1765857915616,3.02,126.43,126.42,0.05719226]
[1765857923923,7.17285311,126.44,126.42,3.30719226]
[1765857924431,0.05305311,126.44,126.42,3.30719226]
[1765857924930,3.02,126.48,126.45,3.25]
[1765857925318,3.02,126.48,126.42,3.25]
[1765857925921,3.02,126.45,126.44,0.05198616]
[1765857935336,2.97,126.42,126.38,70.42]
[1765857936127,10.0912,126.42,126.39,3.12]
[1765857936329,0.06014961,126.41,126.39,3.17279589]
[1765857938147,7.18154961,126.41,126.39,3.17279589]
[1765857939132,10.15154961,126.41,126.39,3.17279589]
[1765857939543,2.97,126.4,126.39,0.05279589]
[1765857939842,10.15154961,126.41,126.39,0.05279589]
[1765857940030,2.97,126.4,126.39,0.05279589]
[1765857947846,2.97,126.38,126.34,3.12]
[1765857948852,7.17954554,126.37,126.35,3.1702161]
[1765857950047,0.05604554,126.37,126.35,3.1702161]
[1765857950853,7.17964554,126.37,126.35,3.1702161]
[1765857951955,10.14964554,126.37,126.35,3.1702161]
[1765857952153,7.1209,126.42,126.35,3.1702161]
[1765857952358,3.03,126.43,126.37,3.12]
[1765857953249,0.05044343,126.41,126.4,3.12]
[1765857953457,0.05044343,126.41,126.39,3.1781925]
[1765857961762,3.08044343,126.41,126.39,3.1781925]
[1765857962072,3.08044343,126.41,126.39,0.0581925]
[1765857962667,3.03,126.4,126.39,0.0581925]
[1765857971978,0.05044343,126.41,126.39,3.4081925]
[1765857972879,7.17174343,126.41,126.39,3.4081925]
[1765857973480,0.05044343,126.41,126.39,3.4081925]
[1765857976175,7.17164343,126.41,126.39,3.4081925]
[1765857976371,3.03,126.4,126.39,0.0581925]
[1765857980080,9.81464833,126.41,126.39,3.4081925]
[1765857980284,7.17164343,126.41,126.39,3.4081925]
[1765857980475,0.05044343,126.41,126.39,6.0511974]
[1765857980780,0.05044343,126.41,126.39,3.4081925]
[1765857984289,3.08044343,126.41,126.39,0.0581925]
[1765857984584,3.03,126.4,126.39,0.0581925]
[1765857988191,7.17204343,126.41,126.39,3.4081925]
[1765857988487,0.05044343,126.41,126.39,3.4081925]
[1765857990490,0.05044343,126.41,126.4,3.35]
[1765857991181,0.05044343,126.41,126.39,0.0581925]
[1765857991182,3.08044343,126.41,126.39,0.0581925]
[1765857991382,0.05044343,126.41,126.39,3.4081925]
[1765857994289,3.02,126.4,126.39,0.0581925]
[1765857994883,5.6630049,126.4,126.39,0.0581925]
[1765857995086,2.96,126.37,126.33,3.1]
[1765857995288,2.96,126.36,126.33,3.1]
[1765857995992,2.96,126.35,126.33,0.053718]
[1765857996996,10.0848,126.35,126.33,0.053718]
[1765857997994,7.1248,126.35,126.33,3.153718]
[1765857998298,0.05486249,126.36,126.33,3.153718]
[1765857998499,0.05486249,126.36,126.34,3.1]
[1765858006601,3.01486249,126.36,126.33,3.153718]
[1765858007490,12.7279049,126.35,126.33,0.053718]
[1765858009996,10.0849,126.35,126.33,0.053718]
[1765858010703,7.1249,126.35,126.33,3.153718]
[1765858014508,0.05486249,126.36,126.33,3.153718]
[1765858015004,7.17896249,126.36,126.33,3.153718]
[1765858019105,2.96,126.35,126.33,3.153718]
[1765858019309,10.13896249,126.36,126.33,3.153718]
[1765858020220,2.96,126.35,126.33,0.053718]
[1765858020417,2.96,126.34,126.33,0.053718]
[1765858020722,5.6030049,126.34,126.33,0.053718]
[1765858021519,7.127,126.31,126.29,3.1]
[1765858021712,7.127,126.31,126.27,2.6430049]
[1765858021713,2.96,126.3,126.27,3.1]
[1765858021918,2.96,126.29,126.27,3.1]
[1765858022518,5.6130049,126.3,126.27,3.1]
[1765858022715,0.05706899,126.29,126.27,3.15301641]
[1765858023325,3.02706899,126.29,126.27,0.05301641]
[1765858023520,0.05706899,126.29,126.27,3.13301641]
[1765858024018,5.6730049,126.36,126.29,3.08]
[1765858024327,3.03,126.37,126.33,3.08]
[1765858024725,2.6430049,126.38,126.33,3.08]
[1765858024922,110.7737,126.42,126.35,3.08]
[1765858025124,113.4167049,126.42,126.35,3.08]
[1765858025424,0.05441708,126.4,126.38,3.08]
[1765858025819,10.20651708,126.4,126.37,0.05285488]
[1765858026120,5.6730049,126.38,126.37,0.05285488]
[1765858027432,3.03,126.38,126.37,0.00285488]
[1765858030630,2.98,126.36,126.32,3.08]
[1765858031730,0.05361215,126.35,126.33,0.05545107]
[1765858032630,3.03361215,126.35,126.33,0.05545107]
[1765858033427,0.05361215,126.35,126.33,3.13545107]
[1765858033829,3.03361215,126.35,126.33,0.05545107]
[1765858034032,10.15831215,126.35,126.33,0.05545107]
[1765858034830,2.98,126.34,126.33,0.05545107]
[1765858036236,7.17831215,126.35,126.33,3.13545107]
[1765858036426,10.15831215,126.35,126.33,3.13545107]
[1765858036733,2.98,126.34,126.33,0.05545107]
[1765858039333,0.05361215,126.35,126.33,4.71545107]
[1765858039525,0.05361215,126.35,126.34,3.08]
[1765858041237,7.122,126.4,126.35,3.08]
[1765858042036,10.102,126.4,126.36,3.08]
[1765858042232,0.05645884,126.39,126.37,3.13543482]
[1765858048043,10.15895884,126.39,126.37,0.05543482]
[1765858048932,7.17895884,126.39,126.37,3.13543482]
[1765858049741,10.15895884,126.39,126.37,0.05543482]
[1765858051642,7.17895884,126.39,126.37,3.13543482]
[1765858052347,0.05645884,126.39,126.37,3.13543482]
[1765858066756,10.14875884,126.39,126.37,0.05543482]
[1765858067055,0.05645884,126.39,126.37,3.13543482]
[1765858075554,0.05645884,126.39,126.37,10.25853482]
[1765858075756,7.12,126.44,126.38,3.08]
[1765858076053,10.15,126.44,126.39,3.08]
[1765858076752,0.05658056,126.43,126.41,3.08]
[1765858079241,3.03,126.48,126.43,3.08]
[1765858079466,3.03,126.48,126.45,3.08]
[1765858080251,3.08971691,126.48,126.45,0.05300831]
[1765858080448,3.06,126.47,126.45,0.05300831]
[1765858081957,10.178,126.47,126.45,0.05300831]
[1765858082168,3.09,126.46,126.45,0.05300831]
[1765858085055,3.09,126.44,126.39,3.17]
[1765858085256,4.13079484,126.46,126.39,3.17]
[1765858085558,3.09,126.53,126.46,3.17]
[1765858085749,13.07858008,126.52,126.47,3.17]
[1765858085948,3.09,126.51,126.47,3.17]
[1765858086150,0.05947098,126.5,126.48,3.23074525]
[1765858087963,0.05947098,126.5,126.49,3.17]
[1765858088669,3.14947098,126.5,126.48,0.06074525]
[1765858090561,3.09,126.49,126.48,0.06074525]
[1765858090956,3.14947098,126.5,126.48,0.06074525]
[1765858095765,0.05947098,126.5,126.48,3.23074525]
[1765858098368,3.14947098,126.5,126.48,3.23074525]
[1765858099755,0.05947098,126.5,126.48,3.23074525]
[1765858100968,0.05947098,126.5,126.49,3.17]
[1765858106461,3.14947098,126.5,126.48,0.06074525]
[1765858106870,3.09,126.49,126.48,0.06074525]
[1765858107070,7.17587098,126.5,126.48,3.23074525]
[1765858109071,0.05947098,126.5,126.48,3.23074525]
[1765858113476,0.05947098,126.5,126.49,3.32]
[1765858116874,10.2444,126.54,126.49,3.32]
[1765858117084,7.1144,126.54,126.51,3.32]
[1765858117591,9.75252975,126.56,126.51,3.32]
[1765858117899,0.05002497,126.55,126.53,3.32]
[1765858118293,3.18002497,126.55,126.52,3.37335646]
[1765858118590,3.18002497,126.55,126.52,0.05335646]
[1765858118591,10.244,126.54,126.52,0.05335646]
[1765858118891,3.13,126.53,126.52,0.05335646]
[1765858122192,4.71,126.53,126.52,0.05335646]
[1765858122401,3.13,126.51,126.48,3.32]
[1765858122594,5.76922975,126.51,126.48,3.32]
[1765858123301,5.82022231,126.51,126.48,3.37653337]
[1765858123901,7.1163,126.5,126.48,3.37653337]
[1765858125502,10.2463,126.5,126.48,3.37653337]
[1765858125694,5.76922975,126.49,126.48,0.05653337]
[1765858128293,3.13,126.49,126.48,0.05653337]
[1765858128900,12.88552975,126.5,126.48,3.37653337]
[1765858129288,7.1163,126.5,126.48,3.37653337]
[1765858129599,10.2463,126.5,126.48,0.05653337]
[1765858133002,0.05099256,126.51,126.48,3.37653337]
[1765858133207,0.05099256,126.51,126.5,3.32]
[1765858142613,0.05099256,126.51,126.49,3.33]
[1765858145504,0.05099256,126.51,126.5,5.96922975]
[1765858152015,0.05099256,126.51,126.5,73.16922975]
[1765858152217,0.05099256,126.51,126.5,70.53]
[1765858152413,3.19099256,126.51,126.5,67.2]
[1765858152615,3.19099256,126.51,126.48,31.38653337]
[1765858152915,3.19099256,126.51,126.49,3.33]
[1765858153814,3.19099256,126.51,126.48,31.38653337]
[1765858154019,3.19099256,126.51,126.48,3.38653337]
[1765858156424,3.14,126.5,126.48,3.38653337]
[1765858161821,10.30659256,126.51,126.48,3.38653337]
[1765858162620,3.14,126.5,126.48,3.38653337]
[1765858163515,3.14,126.5,126.48,0.05653337]
[1765858164020,10.2562,126.5,126.48,0.05653337]
[1765858164221,3.14,126.49,126.48,0.05653337]
[1765858165117,3.14,126.47,126.43,3.33]
[1765858165826,10.2585,126.46,126.43,3.33]
[1765858166121,3.14,126.45,126.44,0.05324959]
[1765858170718,0.05002044,126.46,126.44,3.38324959]
[1765858173026,0.05002044,126.46,126.45,3.34]
[1765858175823,3.19002044,126.46,126.44,0.05324959]
[1765858177926,10.30862044,126.46,126.44,0.05324959]
[1765858178233,3.14,126.45,126.44,0.05324959]
[1765858188360,3.09,126.42,126.38,3.34]
[1765858188855,3.09,126.4,126.35,3.34]
[1765858189050,3.09,126.38,126.35,3.34]
[1765858189246,3.09,126.38,126.33,3.34]
[1765858189451,3.14678263,126.37,126.34,3.39750234]
[1765858189655,10.27058263,126.37,126.34,3.39750234]
[1765858191957,0.05678263,126.37,126.34,3.39750234]
[1765858192749,0.05678263,126.37,126.35,3.34]
[1765858198755,3.14678263,126.37,126.35,3.34]
[1765858199861,10.27028263,126.37,126.35,3.34]
[1765858200568,0.05678263,126.37,126.35,3.34]
[1765858204654,0.05678263,126.37,126.36,3.2]
[1765858205059,3.1,126.43,126.37,3.2]
[1765858205368,3.15,126.42,126.37,3.2]
[1765858206160,3.15,126.4,126.38,0.05718756]
[1765858206870,10.2719,126.4,126.38,0.05718756]
[1765858207071,3.15,126.39,126.38,0.05718756]
[1765858209677,7.1219,126.4,126.38,3.25718756]
[1765858211473,0.05981935,126.41,126.38,3.25718756]
[1765858211970,0.05981935,126.41,126.38,10.37998756]
[1765858212170,0.05981935,126.41,126.39,3.2]
[1765858212474,0.05981935,126.41,126.39,10.3223]
[1765858212673,0.05981935,126.41,126.4,3.2]
[1765858229688,3.20981935,126.41,126.38,3.25718756]
[1765858236185,0.05981935,126.41,126.39,5.72234725]
[1765858236389,0.05981935,126.41,126.4,3.08]
[1765858237880,10.2788,126.46,126.44,3.08]
[1765858238889,10.33759246,126.46,126.44,0.05134954]
[1765858241693,7.17759246,126.46,126.44,3.13134954]
[1765858242085,10.33759246,126.46,126.44,3.13134954]
[1765858244693,3.16,126.45,126.44,0.05134954]
[1765858246893,0.05879246,126.46,126.44,3.13134954]
[1765858249501,3.21879246,126.46,126.44,3.13134954]
[1765858250298,0.05879246,126.46,126.44,3.13134954]
[1765858254495,3.21879246,126.46,126.44,0.05134954]
[1765858256098,3.21879246,126.46,126.44,3.13134954]
[1765858256690,0.05879246,126.46,126.44,3.13134954]
[1765858258595,0.05879246,126.46,126.45,10.199]
[1765858258799,3.19,126.53,126.46,3.08]
[1765858258999,3.19,126.53,126.49,3.08]
[1765858259302,3.19,126.52,126.49,3.08]
[1765858259509,10.305,126.53,126.5,5.72062205]
[1765858259688,10.36369795,126.53,126.51,3.08]
[1765858261504,0.05869795,126.53,126.51,3.08]
[1765858262202,3.22869795,126.53,126.51,3.08]
[1765858262398,3.22869795,126.53,126.5,0.05126816]
[1765858262598,5.81062205,126.51,126.5,0.05126816]
[1765858262804,5.81062205,126.51,126.42,110.7624]
[1765858262805,3.17,126.48,126.43,3.4]
[1765858263010,3.17,126.47,126.43,3.4]
[1765858263799,3.26212217,126.46,126.44,0.05135966]
[1765858264308,3.26212217,126.46,126.44,3.41135966]
[1765858268207,13.02124422,126.46,126.44,0.05135966]
[1765858268612,10.38062217,126.46,126.44,0.05135966]
[1765858269115,0.05212217,126.46,126.44,3.41135966]
[1765858269611,0.05212217,126.46,126.45,6.00062205]
[1765858271205,0.05212217,126.46,126.45,3.36]
[1765858273110,3.26212217,126.46,126.44,0.05135966]
[1765858273308,5.90274422,126.46,126.44,0.05135966]
[1765858273909,3.21,126.45,126.44,0.05135966]
[1765858276415,0.05212217,126.46,126.44,3.41135966]
[1765858277920,0.05212217,126.46,126.45,6.00062205]
[1765858278217,0.05212217,126.46,126.45,3.36]
[1765858286528,3.26212217,126.46,126.44,0.05135966]
[1765858287927,3.21,126.45,126.44,0.05135966]
[1765858297936,3.14,126.41,126.38,3.29]
[1765858298933,10.31266261,126.41,126.38,3.34519007]
[1765858300833,3.19136261,126.41,126.38,3.34519007]
[1765858301037,0.05136261,126.41,126.38,3.34519007]
[1765858304333,0.05136261,126.41,126.38,10.46799007]
[1765858304527,0.05136261,126.41,126.39,3.29]
[1765858306738,0.05136261,126.41,126.4,3.29]
[1765858315840,0.05136261,126.41,126.38,3.34519007]
[1765858317054,0.05136261,126.41,126.39,3.29]
[1765858320247,10.31266261,126.41,126.38,0.05519007]
[1765858320447,3.14,126.4,126.38,0.05519007]
[1765858320840,3.14,126.4,126.38,3.34519007]
[1765858321352,0.05136261,126.41,126.38,3.34519007]
[1765858323147,0.05136261,126.41,126.4,3.29]
[1765858324048,3.21,126.46,126.42,3.29]
[1765858324342,10.3271,126.49,126.42,3.29]
[1765858324551,114.81434456,126.52,126.46,3.29]
[1765858324552,3.21,126.52,126.46,3.29]
[1765858324948,114.79504456,126.54,126.48,0.05537377]
[1765858324949,3.26574425,126.5,126.48,0.05537377]
[1765858328756,0.05574425,126.5,126.48,3.34537377]
[1765858329855,0.05574425,126.5,126.48,10.46237377]
[1765858330058,0.05574425,126.5,126.49,3.29]
[1765858330349,3.26574425,126.5,126.48,3.34537377]
[1765858330549,3.26574425,126.5,126.48,0.05537377]
[1765858330752,3.26574425,126.5,126.48,3.34537377]
[1765858331342,0.05574425,126.5,126.48,3.34537377]
[1765858336256,0.05574425,126.5,126.48,10.46237377]
[1765858336455,0.05574425,126.5,126.49,3.29]
[1765858337158,3.26574425,126.5,126.48,3.34537377]
[1765858337356,0.05574425,126.5,126.48,3.34537377]
[1765858341462,0.05574425,126.5,126.48,7.47351833]
[1765858341665,0.05574425,126.5,126.49,3.29]
[1765858344765,3.26574425,126.5,126.48,0.05537377]
[1765858345170,3.26574425,126.5,126.48,3.34537377]
[1765858352077,10.38194425,126.5,126.48,3.34537377]
[1765858354174,3.07,126.49,126.48,0.05537377]
[1765858357478,7.1186,126.46,126.43,2.63943753]
[1765858357682,10.1886,126.46,126.44,3.17]
[1765858358069,3.07,126.45,126.42,67.22]
[1765858358382,3.07,126.44,126.41,5.80943753]
[1765858358579,3.12990993,126.44,126.41,3.22994714]
[1765858358883,3.07,126.43,126.41,3.22994714]
[1765858359975,10.1903,126.43,126.41,3.22994714]
[1765858360784,7.1203,126.43,126.41,3.22994714]
[1765858361873,5.70943753,126.42,126.41,0.05994714]
[1765858362083,3.07,126.39,126.37,70.39]
[1765858362383,3.07,126.39,126.37,3.17]
[1765858363083,3.12777301,126.39,126.37,3.22452982]
[1765858364586,0.05777301,126.39,126.37,3.22452982]
[1765858369695,3.12777301,126.39,126.37,3.22452982]
[1765858370594,0.05777301,126.39,126.37,3.22452982]
[1765858372900,0.05777301,126.39,126.38,3.17]
[1765858378396,0.05777301,126.39,126.37,0.05452982]
[1765858378397,3.12777301,126.39,126.37,0.05452982]
[1765858380306,5.71339937,126.38,126.37,0.05452982]
[1765858380508,3.07,126.38,126.37,0.05452982]
[1765858381016,10.25027301,126.39,126.37,0.05452982]
[1765858381606,3.07,126.38,126.37,0.05452982]
[1765858393917,7.18027301,126.39,126.37,3.21452982]
[1765858394121,0.05777301,126.39,126.37,5.85792919]
[1765858394317,0.05777301,126.39,126.38,3.16]
[1765858399016,0.05777301,126.39,126.37,3.21452982]
[1765858399213,3.21777301,126.39,126.37,3.21452982]
[1765858399413,3.21777301,126.39,126.37,0.05452982]
[1765858399615,3.21777301,126.39,126.37,3.21452982]
[1765858402228,0.05777301,126.39,126.37,3.21452982]
[1765858402724,3.21777301,126.39,126.37,0.05452982]
[1765858402922,3.16,126.38,126.37,0.05452982]
[1765858407632,113.9743,126.37,126.32,70.38]
[1765858407931,3.16,126.35,126.32,3.16]
[1765858408732,3.21488618,126.35,126.32,3.21200881]
[1765858409033,10.2853,126.34,126.32,0.05200881]
[1765858411925,3.16,126.33,126.32,0.05200881]
[1765858413034,3.22,126.31,126.27,4.43739956]
[1765858413332,3.22,126.31,126.27,3.06]
[1765858413938,3.22,126.29,126.27,3.06]
[1765858414126,3.27305989,126.29,126.27,3.11388315]
[1765858414728,10.40115989,126.29,126.27,3.11388315]
[1765858416028,3.22,126.28,126.27,0.05388315]
[1765858416226,3.22,126.26,126.24,3.06]
[1765858417238,3.27148226,126.26,126.24,3.11998916]
[1765858417730,3.27148226,126.26,126.24,0.05998916]
[1765858419134,10.40128226,126.26,126.24,0.05998916]
[1765858419329,3.17,126.25,126.24,0.05998916]
[1765858421334,0.05148226,126.26,126.24,3.28998916]
[1765858423145,0.05148226,126.26,126.25,3.23]
[1765858423845,3.17,126.3,126.26,3.23]
[1765858424842,0.05255947,126.29,126.27,0.05470928]
[1765858425046,0.05255947,126.29,126.27,3.28470928]